bitfinex/quotes_SOLUSD_20250316
["timestamp","ask_amount","ask_price","bid_price","bid_amount"]
[1742089812644,2.36e-06,135.97,135.96,14.09942314]
[1742089814150,2.36e-06,135.97,135.96,29.13073424]
[1742089819257,2.36e-06,135.97,135.96,29.19373424]
[1742089819555,0.03000236,135.97,135.96,29.19373424]
[1742089819952,0.03000236,135.97,135.96,29.05157267]
[1742089820281,0.03000236,135.97,135.96,13.8781]
[1742089823535,0.03000236,135.97,135.96,7.4181]
[1742089823743,33.71096232,135.97,135.96,0.063]
[1742089824129,94.12052986,135.97,135.96,0.063]
[1742089824338,100.58052986,135.97,135.96,0.063]
[1742089824929,107.93502986,135.97,135.96,0.063]
[1742089825740,107.79286829,135.97,135.96,0.063]
[1742089830041,18.64964886,135.96,135.94,0.063]
[1742089830235,15.0313111,135.95,135.94,0.063]
[1742089831740,22.3869111,135.95,135.94,0.063]
[1742089832264,22.5203506,135.95,135.94,0.063]
[1742089833365,125.1611226,135.95,135.94,0.063]
[1742089833541,124.15686103,135.95,135.94,0.063]
[1742089834356,131.51246103,135.95,135.94,0.063]
[1742089834872,131.6546226,135.95,135.94,0.063]
[1742089836188,18.64964886,135.9,135.89,0.063]
[1742089836337,33.68095996,135.9,135.89,0.063]
[1742089836736,15.0313111,135.9,135.89,0.063]
[1742089838364,40.17445996,135.9,135.89,0.063]
[1742089846647,184.3017275,135.9,135.89,0.063]
[1742089846846,33.82312153,135.89,135.88,0.063]
[1742089847555,41.18192153,135.89,135.88,0.063]
[1742089850453,33.82312153,135.89,135.88,0.063]
[1742089851276,41.18192153,135.89,135.88,0.063]
[1742089851958,100.99181043,135.88,135.87,0.063]
[1742089852155,116.02312153,135.88,135.87,0.063]
[1742089852767,115.88095996,135.88,135.87,0.063]
[1742089853157,0.15405787,135.89,135.87,0.063]
[1742089853659,15.18536897,135.89,135.87,0.063]
[1742089854270,0.15405787,135.89,135.87,0.063]
[1742089854950,15.18536897,135.89,135.87,0.063]
[1742089855372,15.0313111,135.88,135.87,0.063]
[1742089855966,15.21536897,135.89,135.87,0.063]
[1742089856979,15.0313111,135.88,135.87,0.063]
[1742089861668,33.68095996,135.88,135.87,0.063]
[1742089864082,15.21536897,135.89,135.87,0.063]
[1742089864271,0.18405787,135.89,135.87,0.063]
[1742089864682,15.21536897,135.89,135.87,0.063]
[1742089866585,0.18405787,135.89,135.87,0.063]
[1742089867165,0.03,135.88,135.87,0.063]
[1742089871301,0.18405787,135.89,135.87,7.4229]
[1742089871866,0.03,135.89,135.87,7.4229]
[1742089872296,0.15497874,135.88,135.87,7.4229]
[1742089873467,15.18628984,135.88,135.87,7.4229]
[1742089874089,33.8359387,135.88,135.87,0.063]
[1742089874296,41.33750027,135.88,135.87,0.063]
[1742089874481,33.97810027,135.88,135.87,0.063]
[1742089876295,33.8359387,135.88,135.87,0.063]
[1742089879624,33.8659387,135.88,135.87,0.063]
[1742089881323,20.14216157,135.86,135.85,0.063]
[1742089881495,53.82312153,135.86,135.85,0.063]
[1742089882626,53.68095996,135.86,135.85,0.063]
[1742089884802,61.04145996,135.86,135.85,0.063]
[1742089886104,61.18362153,135.86,135.85,0.063]
[1742089886422,0.14216157,135.84,135.83,0.063]
[1742089886629,33.82312153,135.84,135.83,0.063]
[1742089886801,93.94836593,135.84,135.83,0.063]
[1742089888430,101.30996593,135.84,135.83,0.063]
[1742089889333,101.4521275,135.84,135.83,0.063]
[1742089890743,0.14216157,135.82,135.81,0.063]
[1742089890924,116.1652831,135.82,135.81,0.063]
[1742089891108,116.02312153,135.82,135.81,0.063]
[1742089891520,123.38572153,135.82,135.81,0.063]
[1742089891935,123.5278831,135.82,135.81,0.063]
[1742089892328,123.68256666,135.82,135.81,0.063]
[1742089893545,18.64964886,135.77,135.71,7.3686]
[1742089893714,15.0313111,135.74,135.71,7.3686]
[1742089894408,15.0313111,135.73,135.71,7.3686]
[1742089895239,15.0313111,135.73,135.68,25.7957]
[1742089895534,0.14216157,135.72,135.68,25.7957]
[1742089895739,15.0313111,135.7,135.68,7.3702]
[1742089895912,15.0313111,135.69,135.68,7.3702]
[1742089896240,15.0313111,135.7,135.68,7.3702]
[1742089896536,15.0313111,135.71,135.68,7.3702]
[1742089896942,15.0313111,135.73,135.68,22.4015111]
[1742089897441,15.0313111,135.73,135.68,33.4570111]
[1742089897842,15.0313111,135.74,135.68,33.4570111]
[1742089898027,15.0313111,135.74,135.69,15.0313111]
[1742089898528,15.0313111,135.73,135.68,33.4570111]
[1742089898928,0.28432314,135.72,135.68,33.4570111]
[1742089899126,15.0313111,135.69,135.66,8.9944]
[1742089899331,18.64964886,135.71,135.66,7.3711]
[1742089899332,15.0313111,135.67,135.66,7.3711]
[1742089899548,15.0313111,135.67,135.63,7.373]
[1742089900341,15.0313111,135.66,135.63,7.373]
[1742089900649,15.0313111,135.67,135.63,7.373]
[1742089902342,23.60565257,135.67,135.63,7.436]
[1742089902952,23.60565257,135.66,135.63,7.436]
[1742089903960,23.60565257,135.67,135.63,7.436]
[1742089904137,43.60565257,135.68,135.63,49.47415257]
[1742089904459,20.0,135.68,135.64,23.60565257]
[1742089904758,88.7727,135.72,135.65,23.60565257]
[1742089905060,23.60565257,135.7,135.65,23.60565257]
[1742089905246,23.60565257,135.7,135.66,7.3713]
[1742089905447,23.60565257,135.69,135.66,7.3713]
[1742089905649,23.60565257,135.68,135.66,7.3713]
[1742089906558,23.60565257,135.68,135.64,7.3724]
[1742089907664,23.60565257,135.67,135.64,7.3724]
[1742089908045,43.60565257,135.68,135.64,7.3724]
[1742089908239,23.60565257,135.67,135.64,7.3724]
[1742089909345,23.60565257,135.67,135.63,7.436]
[1742089910166,23.60565257,135.66,135.63,7.436]
[1742089911653,13.8498,135.69,135.63,7.436]
[1742089911654,23.60565257,135.65,135.63,0.063]
[1742089911853,23.60565257,135.64,135.63,0.063]
[1742089912376,23.74723801,135.64,135.63,0.063]
[1742089912669,0.14158544,135.64,135.63,0.063]
[1742089917659,20.14158544,135.64,135.63,0.063]
[1742089917859,43.74723801,135.64,135.63,0.063]
[1742089919388,20.14158544,135.64,135.63,0.063]
[1742089919676,43.74723801,135.64,135.63,0.063]
[1742089919874,62.53904844,135.64,135.63,0.063]
[1742089920089,69.16121001,135.64,135.63,0.063]
[1742089920754,76.53361001,135.64,135.63,0.063]
[1742089921176,76.39144844,135.64,135.63,0.063]
[1742089921365,68.87688687,135.64,135.63,0.063]
[1742089921779,26.62158544,135.64,135.63,0.063]
[1742089922079,20.14158544,135.64,135.63,0.063]
[1742089922663,53.90390895,135.64,135.63,0.063]
[1742089923290,69.33093209,135.64,135.63,0.063]
[1742089923982,61.95853209,135.64,135.63,0.063]
[1742089924357,70.47456707,135.64,135.63,0.063]
[1742089925859,77.84696707,135.64,135.63,0.063]
[1742089926064,20.0,135.6,135.57,7.3762]
[1742089926266,43.62870963,135.6,135.57,7.3762]
[1742089926667,20.0,135.6,135.56,8.9992]
[1742089926872,23.62870963,135.57,135.54,7.3778]
[1742089927392,62.27835849,135.6,135.54,7.3778]
[1742089927393,20.0,135.6,135.56,0.063]
[1742089927791,20.0,135.6,135.56,23.69170963]
[1742089927981,20.0,135.6,135.56,0.063]
[1742089928180,43.62870963,135.6,135.56,7.4398]
[1742089928379,23.62870963,135.59,135.56,7.4398]
[1742089928698,23.62870963,135.57,135.56,0.063]
[1742089929895,42.56268163,135.57,135.56,0.063]
[1742089930700,82.2,135.56,135.53,2.4821435]
[1742089931001,42.56268163,135.5,135.49,0.063]
[1742089931174,42.27835849,135.5,135.49,0.063]
[1742089931370,42.56268163,135.5,135.49,0.063]
[1742089931569,42.27835849,135.5,135.49,0.063]
[1742089932390,42.42452718,135.5,135.49,0.063]
[1742089933492,42.70885032,135.5,135.49,0.063]
[1742089935785,122.42670682,135.5,135.49,0.063]
[1742089938606,42.70885032,135.5,135.49,0.063]
[1742089941712,18.64964886,135.49,135.43,0.063]
[1742089941912,23.62870963,135.47,135.43,0.063]
[1742089943107,23.62870963,135.48,135.43,23.69170963]
[1742089943408,105.82870963,135.49,135.44,23.62870963]
[1742089943614,23.62870963,135.48,135.43,23.69170963]
[1742089943784,23.62870963,135.49,135.44,25.26220963]
[1742089943990,0.14616869,135.5,135.46,23.62870963]
[1742089944204,23.77487832,135.5,135.45,23.62870963]
[1742089945018,23.62870963,135.49,135.44,25.26220963]
[1742089945317,23.77487832,135.5,135.46,25.8378]
[1742089945691,0.14616869,135.5,135.46,49.46650963]
[1742089945890,0.14616869,135.5,135.47,23.62870963]
[1742089946201,0.14616869,135.5,135.48,23.62870963]
[1742089946400,0.14616869,135.5,135.47,23.62870963]
[1742089947505,0.14616869,135.5,135.48,31.00980963]
[1742089948123,6.869e-05,135.5,135.49,23.62870963]
[1742089948897,9.197e-05,135.51,135.49,23.62870963]
[1742089949101,9.197e-05,135.51,135.5,23.62870963]
[1742089949614,9.197e-05,135.51,135.5,31.00870963]
[1742089949920,9.197e-05,135.51,135.5,7.38]
[1742089951728,0.13391357,135.52,135.5,7.38]
[1742089951729,23.62870963,135.54,135.5,25.8301]
[1742089951916,23.62870963,135.55,135.5,49.45880963]
[1742089952439,0.14303163,135.51,135.5,49.45880963]
[1742089952611,0.14303163,135.51,135.5,25.8301]
[1742089954614,3.163e-05,135.51,135.5,42.07880963]
[1742089954802,9.775e-05,135.52,135.5,42.07880963]
[1742089955133,9.775e-05,135.52,135.51,23.62870963]
[1742089955710,2.54e-06,135.53,135.51,23.62870963]
[1742089955928,2.54e-06,135.53,135.52,23.62870963]
[1742089956739,2.54e-06,135.53,135.52,7.3789]
[1742089957237,2.54e-06,135.53,135.52,31.00760963]
[1742089957818,2.54e-06,135.53,135.52,7.3789]
[1742089958607,2.54e-06,135.53,135.52,23.62870963]
[1742089961529,2.54e-06,135.53,135.52,31.00760963]
[1742089961730,2.54e-06,135.53,135.52,7.3789]
[1742089961917,0.03000254,135.53,135.52,7.3789]
[1742089962117,0.03000254,135.53,135.52,31.00760963]
[1742089963238,0.03000254,135.53,135.52,7.3789]
[1742089963828,0.03000254,135.53,135.52,31.00760963]
[1742089964236,0.03000254,135.53,135.52,22.50788748]
[1742089964437,2.54e-06,135.53,135.52,103.35004905]
[1742089964750,5.347e-05,135.56,135.53,1.70176157]
[1742089964938,0.14394797,135.57,135.54,12.533]
[1742089965123,4.797e-05,135.57,135.56,15.12898748]
[1742089965726,4.797e-05,135.57,135.56,22.50578748]
[1742089968244,4.797e-05,135.57,135.56,30.99399858]
[1742089968549,8.663e-05,135.58,135.57,23.61719858]
[1742089968726,8.663e-05,135.58,135.57,30.99339858]
[1742089969541,9.0666,135.67,135.63,1.5596]
[1742089969542,0.03,135.67,135.63,1.5596]
[1742089969846,0.03,135.67,135.64,6.54]
[1742089970018,0.03,135.67,135.65,23.61719858]
[1742089971229,0.03,135.67,135.66,23.61719858]
[1742089972340,0.17286811,135.67,135.65,30.98909858]
[1742089973337,0.17286811,135.67,135.66,23.61719858]
[1742089973647,0.17286811,135.67,135.65,23.61719858]
[1742089974051,0.17286811,135.67,135.64,30.98949858]
[1742089974260,0.17286811,135.67,135.64,7.3723]
[1742089974424,23.79006669,135.67,135.63,6.54]
[1742089974625,23.61719858,135.64,135.6,7.3746]
[1742089974932,23.61719858,135.65,135.6,30.99179858]
[1742089979329,0.17286811,135.67,135.64,23.61719858]
[1742089980558,42.43971555,135.67,135.62,23.61719858]
[1742089980739,23.61719858,135.66,135.61,23.61719858]
[1742089981132,18.82251697,135.67,135.61,23.61719858]
[1742089981329,23.61719858,135.66,135.62,7.3735]
[1742089981756,23.61719858,135.65,135.61,7.3739]
[1742089982572,23.61719858,135.65,135.59,7.375]
[1742089982573,23.61719858,135.63,135.59,7.375]
[1742089983057,43.61719858,135.62,135.57,30.99339858]
[1742089983444,23.61719858,135.6,135.56,7.4397]
[1742089984343,1.654,135.59,135.56,7.4397]
[1742089985762,23.61719858,135.61,135.56,49.49889858]
[1742089985962,28.174,135.62,135.58,23.61719858]
[1742089986136,20.0,135.6,135.59,0.063]
[1742089988762,23.61719858,135.66,135.59,23.68019858]
[1742089988952,23.61719858,135.66,135.61,23.61719858]
[1742089989943,23.61719858,135.66,135.62,7.3735]
[1742089991859,18.64964886,135.66,135.62,7.3735]
[1742089992066,42.26684744,135.66,135.62,7.3735]
[1742089992262,0.13717054,135.63,135.6,23.61719858]
[1742089992841,0.13717054,135.63,135.61,23.61719858]
[1742089993272,0.13717054,135.63,135.6,23.61719858]
[1742089994172,0.13717054,135.63,135.59,23.68019858]
[1742089994371,23.61719858,135.62,135.59,0.063]
[1742089994851,23.75436912,135.63,135.59,7.4377]
[1742089995949,23.61719858,135.61,135.59,0.063]
[1742089996258,23.61719858,135.6,135.59,0.063]
[1742089996776,48.94401798,135.63,135.59,23.68019858]
[1742089996986,25.3268194,135.63,135.59,23.68019858]
[1742089997364,48.94401798,135.63,135.59,0.063]
[1742089997673,6.67717054,135.63,135.59,23.68019858]
[1742089998185,30.29436912,135.63,135.59,0.063]
[1742089998665,30.29436912,135.63,135.59,7.4381]
[1742089999160,18.64964886,135.62,135.59,7.4381]
[1742089999352,43.61719858,135.6,135.59,0.063]
[1742089999550,20.0,135.6,135.59,0.063]
[1742090005772,0.16717054,135.63,135.59,23.68019858]
[1742090006073,23.78436912,135.63,135.59,0.063]
[1742090006575,42.26684744,135.62,135.59,0.063]
[1742090006877,62.26684744,135.6,135.59,0.063]
[1742090007050,85.88404602,135.6,135.59,0.063]
[1742090007460,62.26684744,135.6,135.59,0.063]
[1742090007777,43.61719858,135.6,135.59,0.063]
[1742090008281,62.26684744,135.6,135.59,0.063]
[1742090008461,69.92577058,135.6,135.59,0.063]
[1742090009381,62.26684744,135.6,135.59,0.063]
[1742090009697,30.15719858,135.61,135.59,0.063]
[1742090010395,6.54,135.61,135.59,0.063]
[1742090010901,105.81719858,135.62,135.59,0.063]
[1742090011072,42.43401798,135.63,135.59,0.063]
[1742090011791,42.29684744,135.63,135.59,7.4381]
[1742090011996,23.64719858,135.63,135.59,7.4381]
[1742090012293,0.1414739,135.6,135.59,7.4381]
[1742090019696,0.1414739,135.6,135.59,0.063]
[1742090020076,43.75867248,135.6,135.59,0.063]
[1742090020277,62.40832134,135.6,135.59,0.063]
[1742090021385,69.78292134,135.6,135.59,0.063]
[1742090022705,62.40832134,135.6,135.59,0.063]
[1742090024692,62.43832134,135.6,135.59,0.063]
[1742090025012,38.82112276,135.6,135.59,0.063]
[1742090025187,20.1714739,135.6,135.59,0.063]
[1742090025391,0.1714739,135.6,135.59,0.063]
[1742090025718,43.78867248,135.6,135.59,0.063]
[1742090026086,23.78867248,135.6,135.59,0.063]
[1742090026287,43.78867248,135.6,135.59,0.063]
[1742090027205,62.43832134,135.6,135.59,0.063]
[1742090027694,80.35524306,135.6,135.59,0.063]
[1742090027887,49.07912134,135.6,135.59,0.063]
[1742090029622,56.73804448,135.6,135.59,0.063]
[1742090029997,63.23804448,135.6,135.59,0.063]
[1742090030199,62.95372134,135.6,135.59,0.063]
[1742090030921,63.23804448,135.6,135.59,0.063]
[1742090031519,86.85524306,135.6,135.59,0.063]
[1742090031897,86.71376916,135.6,135.59,0.063]
[1742090032119,63.09657058,135.6,135.59,0.063]
[1742090032313,63.24340931,135.6,135.59,0.063]
[1742090032521,86.86060789,135.6,135.59,0.063]
[1742090035719,31.96728759,135.6,135.59,0.063]
[1742090036016,55.58448617,135.6,135.59,0.063]
[1742090036207,62.95908617,135.6,135.59,0.063]
[1742090039626,86.57628475,135.6,135.59,0.063]
[1742090040007,55.58448617,135.6,135.59,0.063]
[1742090040729,62.95908617,135.6,135.59,0.063]
[1742090041117,56.45908617,135.6,135.59,0.063]
[1742090041628,49.08448617,135.6,135.59,0.063]
[1742090041934,42.44368617,135.6,135.59,0.063]
[1742090042307,0.17683873,135.6,135.59,0.063]
[1742090043225,0.17683873,135.6,135.59,15.18646593]
[1742090043807,0.17683873,135.6,135.59,22.56156593]
[1742090044227,0.17683873,135.6,135.59,7.4381]
[1742090045214,3.873e-05,135.6,135.59,54.96820112]
[1742090045417,7.13e-06,135.61,135.6,0.28432314]
[1742090045617,7.13e-06,135.61,135.6,30.40721213]
[1742090045916,9.851e-05,135.63,135.6,56.21831213]
[1742090046115,2.76e-05,135.64,135.62,23.62288899]
[1742090046331,2.76e-05,135.64,135.63,23.62288899]
[1742090047838,2.76e-05,135.64,135.63,25.13008899]
[1742090048334,4.777e-05,135.68,135.64,0.28432314]
[1742090048543,4.777e-05,135.68,135.67,23.62288899]
[1742090048839,4.509e-05,135.69,135.67,23.62288899]
[1742090049131,4.509e-05,135.69,135.68,23.62288899]
[1742090050537,4.509e-05,135.69,135.68,30.99308899]
[1742090050934,4.509e-05,135.69,135.68,7.3702]
[1742090051516,4.509e-05,135.69,135.65,30.12288899]
[1742090051838,23.62288899,135.67,135.64,7.3724]
[1742090052345,0.14092606,135.65,135.64,7.3724]
[1742090054561,0.14092606,135.65,135.64,30.99528899]
[1742090060743,0.14092606,135.65,135.64,31.27961213]
[1742090061671,2.955e-05,135.66,135.65,0.28432314]
[1742090061969,2.955e-05,135.66,135.65,23.90721213]
[1742090062468,2.955e-05,135.66,135.65,23.62288899]
[1742090062671,2.955e-05,135.66,135.64,7.3724]
[1742090062865,2.955e-05,135.66,135.64,30.99528899]
[1742090064662,2.955e-05,135.66,135.65,30.99478899]
[1742090065069,23.62291854,135.66,135.63,7.4354]
[1742090065376,2.955e-05,135.66,135.63,7.4354]
[1742090066061,2.955e-05,135.66,135.64,23.62288899]
[1742090066779,2.955e-05,135.66,135.65,7.3719]
[1742090067666,2.955e-05,135.66,135.65,30.99478899]
[1742090068998,8.897e-05,135.67,135.66,0.28432314]
[1742090069282,0.14082909,135.72,135.69,0.28432314]
[1742090069487,0.03,135.77,135.71,47.53010112]
[1742090069688,0.03,135.77,135.73,23.90721213]
[1742090070368,5.77e-05,135.74,135.73,23.90721213]
[1742090071388,5.77e-05,135.74,135.73,31.27471213]
[1742090071771,0.03,135.77,135.74,0.28432314]
[1742090071980,0.03,135.77,135.75,6.6]
[1742090072372,0.15857709,135.76,135.75,6.6]
[1742090073576,0.15857709,135.76,135.75,13.9664]
[1742090074798,0.18857709,135.76,135.75,13.9664]
[1742090075100,0.17098402,135.77,135.75,37.87361213]
[1742090075101,6.111e-05,135.77,135.75,37.87361213]
[1742090075275,6.111e-05,135.77,135.76,23.62288899]
[1742090075468,6.111e-05,135.77,135.75,7.3664]
[1742090075670,6.111e-05,135.77,135.75,30.98928899]
[1742090076299,6.111e-05,135.77,135.76,23.62288899]
[1742090077388,6.111e-05,135.77,135.76,30.98878899]
[1742090077983,6.111e-05,135.77,135.76,31.27311213]
[1742090078591,2.547e-05,135.78,135.76,31.27311213]
[1742090078792,2.547e-05,135.78,135.77,23.90721213]
[1742090079704,2.547e-05,135.78,135.77,7.3653]
[1742090080078,2.547e-05,135.78,135.77,30.98818899]
[1742090081309,2.547e-05,135.78,135.76,7.3657]
[1742090081472,2.547e-05,135.78,135.76,30.98858899]
[1742090081969,2.547e-05,135.78,135.76,7.3657]
[1742090082676,2.547e-05,135.78,135.75,30.98908899]
[1742090084598,2.547e-05,135.78,135.76,23.62288899]
[1742090085182,2.547e-05,135.78,135.75,30.98908899]
[1742090086199,2.547e-05,135.78,135.74,7.3668]
[1742090086200,29.94551446,135.78,135.74,7.3668]
[1742090086388,29.94551446,135.78,135.74,7.4298]
[1742090086791,29.97551446,135.78,135.74,7.4298]
[1742090087098,0.03002547,135.78,135.77,23.62288899]
[1742090087281,0.03002547,135.78,135.77,30.24288899]
[1742090088091,0.03002547,135.78,135.77,37.89251213]
[1742090088288,2.547e-05,135.78,135.77,37.89251213]
[1742090091400,7.504e-05,135.79,135.77,37.75035056]
[1742090091628,7.504e-05,135.79,135.78,23.62288899]
[1742090091925,0.03,135.81,135.79,7.3643]
[1742090092124,0.03,135.81,135.8,23.62288899]
[1742090092425,0.16649213,135.81,135.8,23.62288899]
[1742090092998,9.213e-05,135.81,135.8,23.62288899]
[1742090093917,9.213e-05,135.81,135.8,30.98658899]
[1742090099121,0.03009213,135.81,135.8,30.98658899]
[1742090104530,9.213e-05,135.81,135.8,111.97091213]
[1742090104829,1.466e-05,135.83,135.81,0.28432314]
[1742090105030,1.466e-05,135.83,135.82,30.18288899]
[1742090106327,1.466e-05,135.83,135.82,30.46721213]
[1742090107519,1.466e-05,135.83,135.82,37.82981213]
[1742090108223,50.02400365,135.83,135.77,0.063]
[1742090108529,23.62288899,135.79,135.77,0.063]
[1742090108928,20.0,135.79,135.77,0.063]
[1742090109241,23.62288899,135.8,135.77,0.063]
[1742090110628,23.62288899,135.81,135.77,0.063]
[1742090110839,23.62288899,135.82,135.8,0.063]
[1742090111525,43.62288899,135.81,135.8,0.063]
[1742090112421,43.7672994,135.81,135.8,0.063]
[1742090115716,20.14441041,135.81,135.8,0.063]
[1742090115918,43.7672994,135.81,135.8,0.063]
[1742090120136,0.14441041,135.81,135.8,0.063]
[1742090120351,0.14441041,135.81,135.8,104.67021213]
[1742090121242,0.14441041,135.81,135.8,112.03391213]
[1742090122237,1.041e-05,135.81,135.8,112.03391213]
[1742090122421,7.091e-05,135.82,135.81,0.28432314]
[1742090122621,8.177e-05,135.83,135.81,25.01117611]
[1742090122921,8.177e-05,135.83,135.82,30.24288899]
[1742090124341,8.177e-05,135.83,135.82,37.60548899]
[1742090125626,8.177e-05,135.83,135.82,118.30548899]
[1742090131861,0.03,135.84,135.83,0.28432314]
[1742090132029,0.03,135.84,135.83,23.90721213]
[1742090132229,0.03,135.84,135.83,23.76505056]
[1742090132429,0.18547277,135.84,135.83,23.90721213]
[1742090134048,0.18547277,135.84,135.83,7.3621]
[1742090137958,0.18547277,135.84,135.83,30.98498899]
[1742090142340,0.18547277,135.84,135.83,7.3621]
[1742090144852,0.18547277,135.84,135.82,7.3625]
[1742090145176,23.62288899,135.83,135.81,7.4259]
[1742090145372,23.62288899,135.83,135.81,0.063]
[1742090145774,43.62288899,135.82,135.81,0.063]
[1742090146250,35.07767501,135.82,135.81,0.063]
[1742090146778,42.44027501,135.82,135.81,0.063]
[1742090146980,61.08992387,135.82,135.81,0.063]
[1742090147159,67.64382387,135.82,135.81,0.063]
[1742090147559,69.20622387,135.82,135.81,0.063]
[1742090148278,77.69699075,135.82,135.81,0.063]
[1742090149479,51.68474189,135.82,135.81,0.063]
[1742090151857,70.33439075,135.82,135.81,0.063]
[1742090152060,77.69699075,135.82,135.81,0.063]
[1742090152372,77.83355164,135.82,135.81,0.063]
[1742090153281,160.31787478,135.82,135.8,0.063]
[1742090153467,42.50241389,135.81,135.8,0.063]
[1742090154671,49.58129075,135.81,135.8,0.063]
[1742090154880,42.21809075,135.81,135.8,0.063]
[1742090156267,49.58129075,135.81,135.8,0.063]
[1742090160584,49.86561389,135.81,135.8,0.063]
[1742090160891,26.46994886,135.78,135.77,0.063]
[1742090161065,73.60683264,135.78,135.77,0.063]
[1742090161395,20.0,135.75,135.74,0.063]
[1742090161693,43.56844189,135.75,135.74,0.063]
[1742090162887,152.06881389,135.75,135.74,0.063]
[1742090163065,20.0,135.71,135.68,0.063]
[1742090163267,23.56844189,135.69,135.68,0.063]
[1742090165468,42.21809075,135.69,135.68,0.063]
[1742090166072,56.07661389,135.69,135.68,0.063]
[1742090166370,48.42259075,135.69,135.68,0.063]
[1742090166570,23.56844189,135.69,135.68,0.063]
[1742090167687,23.56844189,135.7,135.68,0.063]
[1742090167886,23.56844189,135.69,135.68,0.063]
[1742090168191,43.56844189,135.69,135.68,0.063]
[1742090168872,62.21809075,135.69,135.68,0.063]
[1742090169488,69.58779075,135.69,135.68,0.063]
[1742090170386,69.87211389,135.69,135.68,0.063]
[1742090171297,62.21809075,135.69,135.68,0.063]
[1742090172394,62.36000215,135.69,135.68,0.063]
[1742090173595,23.71035329,135.69,135.68,0.063]
[1742090173796,0.1419114,135.69,135.68,0.063]
[1742090173995,82.2,135.64,135.6,0.063]
[1742090174182,43.56844189,135.61,135.6,0.063]
[1742090176380,23.56844189,135.62,135.6,0.063]
[1742090176570,105.76844189,135.64,135.6,0.063]
[1742090176776,23.56844189,135.64,135.6,0.063]
[1742090177184,43.56844189,135.63,135.6,0.063]
[1742090178489,20.0,135.63,135.6,0.063]
[1742090179302,23.56844189,135.65,135.6,23.63144189]
[1742090179477,6.2106,135.67,135.6,23.63144189]
[1742090179478,23.56844189,135.66,135.6,23.63144189]
[1742090179873,20.0,135.64,135.6,23.63144189]
[1742090180688,20.0,135.64,135.61,7.374]
[1742090181298,23.56844189,135.63,135.6,0.063]
[1742090182794,23.56844189,135.62,135.6,0.063]
[1742090182979,23.56844189,135.61,135.6,0.063]
[1742090184289,42.21809075,135.61,135.6,0.063]
[1742090184704,48.74669075,135.61,135.6,0.063]
[1742090184905,79.68913264,135.61,135.6,0.063]
[1742090186310,79.97345578,135.61,135.6,0.063]
[1742090186488,79.97345578,135.61,135.59,0.063]
[1742090186489,66.07085578,135.6,135.59,0.063]
[1742090186890,65.78653264,135.6,135.59,0.063]
[1742090187185,42.21809075,135.6,135.59,0.063]
[1742090188003,23.56844189,135.6,135.59,0.063]
[1742090188397,23.56844189,135.61,135.59,0.063]
[1742090188602,43.56844189,135.62,135.59,0.063]
[1742090190212,20.0,135.61,135.59,0.063]
[1742090190516,23.59844189,135.63,135.59,0.063]
[1742090191703,0.03,135.63,135.6,23.56844189]
[1742090192394,0.15679277,135.61,135.6,23.56844189]
[1742090192906,9.277e-05,135.61,135.6,23.56844189]
[1742090193897,9.277e-05,135.61,135.6,7.3746]
[1742090195120,9.277e-05,135.61,135.59,0.063]
[1742090195121,129.33697655,135.61,135.59,0.063]
[1742090195316,65.78653264,135.6,135.59,0.063]
[1742090195704,42.21809075,135.6,135.59,0.063]
[1742090196401,23.56844189,135.6,135.59,0.063]
[1742090196927,43.56844189,135.6,135.59,0.063]
[1742090199026,69.59269075,135.6,135.59,0.063]
[1742090199326,68.93809075,135.6,135.59,0.063]
[1742090201525,62.21809075,135.6,135.59,0.063]
[1742090201732,69.59269075,135.6,135.59,0.063]
[1742090203209,62.21809075,135.6,135.59,0.063]
[1742090203405,43.56844189,135.6,135.59,0.063]
[1742090211644,9.277e-05,135.61,135.59,0.063]
[1742090212544,0.14108034,135.6,135.59,0.063]
[1742090214540,0.14108034,135.6,135.59,23.63144189]
[1742090216038,0.14108034,135.6,135.59,7.4381]
[1742090218940,0.14108034,135.6,135.59,0.063]
[1742090229076,35.25772542,135.6,135.59,0.063]
[1742090230397,20.14108034,135.6,135.59,0.063]
[1742090232268,69.79477416,135.6,135.59,0.063]
[1742090232474,69.9284029,135.6,135.59,0.063]